Cogmind - Beta 13 @@@ ROGUE MODE // 2024.04.07 @ 13:50:27 Player: Vox Result: Destroyed by VE-W8U(R) with Subdweller Laser Performance ------------- Evolutions (0) 0 Regions Visited (2) 400 Robots Destroyed (24) 120 Value Destroyed (634) 634 Prototype IDs (0) 0 Alien Tech Used (0) 0 Bonus (0) 0 TOTAL SCORE: 1154 Bonus ------- None Cogmind --------- Core Integrity 0/250 Matter 232/300 Energy 250/250 System Corruption 0% Temperature Cool (6) Movement Core (250) Ox4 Location -10/Subcaves Parts ------- > --- POWER (1) -------- Ion Engine > --- PROPULSION (2) --- (None) > --- UTILITY (2) ------ Small Storage Unit Signal Interpreter > --- WEAPON (2) ------- Grenade Launcher Makeshift Sword > --- INVENTORY (8) ---- Ion Engine Aluminum Leg Aluminum Leg Sensor Array Light Armor Plating Subdweller Laser Light Assault Rifle Light Cannon Peak State ------------ > --- POWER ------------ Ion Engine > --- PROPULSION ------- Aluminum Leg Aluminum Leg > --- UTILITY ---------- Small Storage Unit Signal Interpreter > --- WEAPON ----------- Light Assault Rifle Makeshift Sword > --- INVENTORY -------- Aluminum Leg Aluminum Leg Sensor Array Light Armor Plating Subdweller Laser Light Cannon Grenade Launcher [Rating: 10] Favorites ----------- Power Ion Engine Engine Ion Engine Propulsion Aluminum Leg Treads Light Treads Leg Aluminum Leg Utility Small Storage Unit Storage Small Storage Unit Processor Signal Interpreter Protection Light Armor Plating Weapon Light Assault Rifle Energy Gun Small Laser Ballistic Gun Light Assault Rifle Ballistic Cannon Light Cannon Launcher Grenade Launcher Special Weapon Mining Laser Slashing Weapon Makeshift Sword Build | -11 -10 -10 ------- Run | Yrd Mat Sub Slots Evolved . | . . . Power . | . . . Propulsion . | . . . Utility . | . . . Weapon . | . . . Parts Attached 22 | 7 8 7 Power 3 | 1 1 1 Engine 3 | 1 1 1 Core . | . . . Reactor . | . . . Propulsion 4 | 2 2 . Treads 2 | 2 . . Leg 2 | . 2 . Wheel . | . . . Hover . | . . . Flight . | . . . Utility 3 | 1 2 . Device . | . . . Storage 1 | 1 . . Processor 1 | . 1 . Hackware . | . . . Protection 1 | . 1 . Artifact . | . . . Weapon 12 | 3 3 6 Energy Gun 1 | 1 . . Energy Cannon . | . . . Ballistic Gun 4 | 2 1 1 Ballistic Cannon 2 | . 1 1 Launcher 2 | . . 2 Special Weapon 2 | . 1 1 Impact Weapon . | . . . Slashing Weapon 1 | . . 1 Piercing Weapon . | . . . Special Melee Weapon . | . . . Unidentified Prototypes . | . . . Parts Lost 4 | . . 4 Power 1 | . . 1 Propulsion 2 | . . 2 Utility . | . . . Weapon 1 | . . 1 Highest Loss Streak 2 | . . 2 To Critical Strikes . | . . . Average Slot Usage (%) 99 | . 99 99 Engine 13 | . 14 13 Treads 13 | . 20 . Leg 14 | . 7 27 Storage 14 | . 14 14 Processor 12 | . 11 14 Protection 1 | . 2 . Ballistic Gun 16 | . 18 12 Ballistic Cannon 8 | . 8 9 Special Weapon 1 | . . 3 Naked Turns . | . . . Heaviest Build 16 | 13 16 16 Greatest Support 40 | 40 40 20 Greatest Overweight (x) 1 | . 1 . Average Overweight (x) . | . . . Largest Inventory Capacity 8 | 8 8 8 Average Capacity 7 | 6 8 8 Most Carried 8 | 6 8 8 Average Carried 7 | 3 7 7 Final Capacity 8 | 8 8 8 Final Carried 8 | 6 8 8 Class Distribution -------------------- 100% | Mutant Dominant Class ---------------- Mutant | -10/Materials Mutant | -10/Subcaves Resources | -11 -10 -10 ----------- Run | Yrd Mat Sub Matter Collected 812 | 270 320 222 Remotely . | . . . Salvage Created 574 | . 453 121 Parts 48 | . 37 11 Haulers Intercepted . | . . . Recyclers Shooed . | . . . Parts Field Recycled . | . . . Retrieved Matter . | . . . Parts Self-Destructed 11 | . . 11 Prevented . | . . . Kills | -11 -10 -10 ------- Run | Yrd Mat Sub Combat Hostiles Destroyed 19 | . 13 6 Guns 8 | . 6 2 Cannons 7 | . 7 . AOE 4 | . . 4 Classes Destroyed 5 | . 3 2 Turret 2 | . . 2 Watcher 3 | . 3 . Swarmer 7 | . 3 4 Grunt 10 | . 10 . Subdweller 2 | . . 2 Best Kill Streak 6 | . 4 6 Combat Bots Only 4 | . 3 4 Max Kills in Single Turn 4 | . 1 4 Gunslinging . | . . . Exploded 4 | . . 4 Melee . | . . . Uniques/NPCs Destroyed . | . . . Combat | -11 -10 -10 -------- Run | Yrd Mat Sub Hostile Shots Fired 143 | . 55 88 Missed 45 | . 13 32 Damage Taken 1126 | . 506 620 Core 251 | . 104 147 Absorbed by Shields . | . . . Core Remaining (%) 100 | 100 . . Volleys Fired 90 | . 57 33 Largest 2 | . 2 2 Hottest 100 | . 100 100 Shots Fired 158 | . 111 47 Gun 100 | . 86 14 Cannon 37 | . 23 14 Launcher 17 | . . 17 Special 4 | . 2 2 Kinetic 137 | . 109 28 Thermal 4 | . 2 2 Explosive 17 | . . 17 Electromagnetic . | . . . Robot Hit Streak 12 | . 12 8 Robot Miss Streak 4 | . 3 4 Penetration Max . | . . . Secondary Targets 1 | . 1 . Max Gunslinging Chain 1 | . 1 . Shots Hit Robots 80 | . 63 17 Core Hits 50 | . 30 20 Critical Kills 1 | . . 1 Critical Parts Destroyed . | . . . Critical Strikes 2 | . . 2 Destroy 1 | . . 1 Blast 1 | . . 1 Melee Attacks 1 | . . 1 Impact . | . . . Slashing 1 | . . 1 Piercing . | . . . Sneak Attacks . | . . . Combat Hostiles . | . . . Follow-up Attacks . | . . . Damage Inflicted 1406 | . 713 693 Guns 528 | . 472 56 Cannons 313 | . 241 72 Explosions 565 | . . 565 Melee . | . . . Ramming . | . . . Kinetic 841 | . 713 128 Thermal . | . . . Explosive 565 | . . 565 Electromagnetic . | . . . Impact . | . . . Slashing . | . . . Piercing . | . . . Highest Corruption . | . . . Average Corruption . | . . . Corruption Purged . | . . . Corruption Blocked . | . . . Overload Shots . | . . . Overflow Damage 30 | . . 30 Projectiles . | . . . Explosions 30 | . . 30 Melee . | . . . Knockbacks 4 | . 2 2 Impact . | . . . Kinetic 4 | . 2 2 Secondary . | . . . Self-Inflicted Damage 76 | . . 76 Shots 4 | . . 4 Rammed . | . . . Targets Rammed . | . . . Kicked . | . . . Crushed . | . . . Highest Temperature 40 | . 40 . Average Temperature 13 | . 13 . Received Heat Transfer 516 | . 252 264 Siege Activations . | . . . Robots Corrupted . | . . . Combat Hostiles . | . . . Parts Fried . | . . . Impact Corruptions . | . . . Robots Melted . | . . . Combat Hostiles . | . . . Parts Melted . | . . . Heat Transferred . | . . . Parts Sabotaged . | . . . Parts Stolen . | . . . Parts Stripped . | . . . Power Chain Reactions . | . . . Alert | -11 -10 -10 ------- Run | Yrd Mat Sub Peak Influence 243 | . 243 . Initial . | . . . Average 87 | . 93 . Maximum Alert Level 1 | . 1 . Low Security (%) 96 | 100 96 . Level 1 3 | . 3 . Level 2 . | . . . Level 3 . | . . . Level 4 . | . . . Level 5 . | . . . High Security . | . . . Max Security . | . . . Squads Dispatched 4 | . 4 . Investigation 3 | . 3 . Extermination . | . . . Reinforcement 1 | . 1 . Assault . | . . . Garrison . | . . . Intercept . | . . . Searches Triggered . | . . . Construction Impeded . | . . . Haulers Reinforced . | . . . Active Scanning Responses . | . . . Cargo Convoy Interrupts . | . . . Stealth | -11 -10 -10 --------- Run | Yrd Mat Sub Distress Signals 1 | . 1 . Communications Jammed . | . . . Distress Signals . | . . . Times Spotted 59 | . 25 34 Peak Tracking Total 6 | . 4 6 Tactical Retreats 2 | . . 2 Traps | -11 -10 -10 ------- Run | Yrd Mat Sub Traps Triggered . | . . . Indirectly . | . . . Trap Hack Attempts . | . . . Triggered . | . . . Disarmed . | . . . Reprogrammed . | . . . Reused . | . . . Traps Extracted . | . . . Installed . | . . . Triggered . | . . . Machines | -11 -10 -10 ---------- Run | Yrd Mat Sub Machines Disabled 4 | . 1 3 Max in Single Turn 2 | . 1 2 Machines Repaired . | . . . Machines Dismantled . | . . . Machines Sabotaged . | . . . Overloaded Fab Kills . | . . . Hacking | -11 -10 -10 --------- Run | Yrd Mat Sub Machines Accessed 6 | . 6 . Terminals 6 | . 6 . Fabricators . | . . . Repair Stations . | . . . Recycling Units . | . . . Scanalyzers . | . . . Garrison Access . | . . . Total Hacks 23 | . 23 . Successful 11 | . 11 . Failed 12 | . 12 . Catastrophic 1 | . 1 . Database Lockouts . | . . . Manual 23 | . 23 . Terminals 23 | . 23 . Fabricators . | . . . Repair Stations . | . . . Recycling Units . | . . . Scanalyzers . | . . . Garrison Access . | . . . Terminal Hacks 4 | . 4 . Robot Analysis 2 | . 2 . Unreport Threat 1 | . 1 . Recall Reinforcements 1 | . 1 . Fabricator Hacks . | . . . Repair Station Hacks . | . . . Recycling Unit Hacks . | . . . Scanalyzer . | . . . Garrison Access Hacks . | . . . Unauthorized Hacks 7 | . 7 . Terminals 7 | . 7 . Track 1 | . 1 . Assimilate 1 | . 1 . Botnet 5 | . 5 . Fabricators . | . . . Repair Stations . | . . . Recycling Units . | . . . Scanalyzers . | . . . Garrison Access . | . . . Data Cores Recovered . | . . . Used . | . . . Hacking Detections 6 | . 6 . Full Trace Events 4 | . 4 . Feedback Events . | . . . Feedback Blocked . | . . . Robot Schematics Acquired . | . . . Robots Built . | . . . Authchips . | . . . Time . | . . . Total Robot Build Rating . | . . . Part Schematics Acquired . | . . . Parts Built . | . . . Authchips . | . . . Time . | . . . Total Part Build Rating . | . . . Parts Repaired . | . . . Time . | . . . Parts Recycled . | . . . Recycled Matter . | . . . Retrieved Matter . | . . . Retrieved Components . | . . . Parts Scanalyzed . | . . . Part Schematics Acquired . | . . . Parts Damaged . | . . . Bothacking | -11 -10 -10 ------------ Run | Yrd Mat Sub Used RIF Installer . | . . . Robots Hacked . | . . . Non-combat . | . . . Combat . | . . . Robot Hacks Applied . | . . . Relay Couplers Released . | . . . Fabnet Peak Effective % . | . . . Robots Rewired . | . . . Allies Hacked . | . . . Hacks Repelled . | . . . Allies | -11 -10 -10 -------- Run | Yrd Mat Sub Total Allies 1 | . 1 . Largest Group 1 | . 1 . Highest-Rated Group 10 | . 10 . Highest-Rated Ally 10 | . 10 . Total Orders . | . . . Ally Attacks . | . . . Total Damage . | . . . Kills . | . . . Allies Corrupted . | . . . Allies Melted . | . . . Intel | -11 -10 -10 ------- Run | Yrd Mat Sub Robot Analysis Total 2 | . 2 . Derelict Logs Recovered 1 | . . 1 Drone Launches . | . . . Drone Recoveries . | . . . Exploration | -11 -10 -10 ------------- Run | Yrd Mat Sub Turns Passed 1731 | 73 1064 594 Spaces Moved 1045 | 37 591 417 Core 1 | 1 . . Treads 408 | 36 372 . Legs 636 | . 219 417 Wheels . | . . . Hover . | . . . Flight . | . . . Fastest Speed 50 | 50 120 120 Average Speed 135 | 157 145 120 Slowest Speed 190 | 160 190 120 Overloaded Moves . | . . . Propulsion Burnouts . | . . . Robots Hopped . | . . . Cave-ins Triggered . | . . . Exploration Rate (%) 37 | 4 84 25 Regions Visited 2 Branch Regions 1 Pre-discovered Areas . | . . . Known Exits Taken 1 | . 1 . Unknown Exits Taken 1 | 1 . . Scrap Searched . | . . . Spaces Dug 2 | . 2 . Terrain Destroyed 45 | . 2 43 Melee . | . . . Projectile 2 | . 2 . AOE 43 | . . 43 Terrain Rammed . | . . . Walls Destroyed . | . . . Machines Disabled . | . . . Actions | -11 -10 -10 --------- Run | Yrd Mat Sub Total 1203 | 49 693 461 Wait 23 | . 23 . Move 1043 | 36 590 417 Hop . | . . . Pick Up 13 | 5 6 2 Fast Attach 12 | 7 4 1 Attach 3 | . 1 2 Detach 1 | 1 . . Swap 7 | . 3 4 Drop 10 | . 9 1 Fire 90 | . 57 33 Melee 1 | . . 1 Ram . | . . . Kick . | . . . Crush . | . . . Escape Stasis . | . . . Rewire . | . . . Trap . | . . . Miscellaneous . | . . . Route ------- -11/Scrapyard -10/Materials (discovered 3 exits: *Mat x2 / *Sub) -10/Subcaves (discovered 2 exits: [*Mat] / *Rec) History --------- Turn | Location | Event 37 | -11/Scrapyard | Discovered new exit (range 16) 74 | -11/Scrapyard | Entered Materials 319 | -10/Materials | Build established: Mutant 714 | -10/Materials | Discovered new exit (range 10) 728 | -10/Materials | Identified exit to Materials 946 | -10/Materials | Discovered exit to Materials (range 15) 1070 | -10/Materials | Discovered new exit (range 8) 1079 | -10/Materials | Identified exit to Subcaves 1138 | -10/Materials | Entered Subcaves 1149 | -10/Subcaves | Learned location of 1 exit from Materials 1214 | -10/Subcaves | Discovered new exit (range 14) 1350 | -10/Subcaves | Core integrity fell below 50% 1363 | -10/Subcaves | Discovered new exit (range 14) 1414 | -10/Subcaves | Identified exit to Recycling 1684 | -10/Subcaves | Shifting Twisted Machinery released Sub. Monowheel 1727 | -10/Subcaves | Core integrity fell below 20% 1732 | -10/Subcaves | Destroyed by VE-W8U(R) with Subdweller Laser Last Messages --------------- 01496_ 08-MDS(u) tweaks Twisted Machinery. 01587_ Acquired 12 matter. 01596_ Acquired 13 matter. 01599_ Acquired 8 matter. 01602_ Acquired 6 matter. 01607_ Acquired 8 matter. 01612_ Acquired 7 matter. 01619_ Acquired 14 matter. 01625_ Acquired 7 matter. 01664_ Dropped Mining Laser. 01664_ Acquired Mak. Sword. 01666_ Acquired 47 matter. 01668_ Acquired Ion Engine. Sub. Monowheel falls loose from the Twisted Machinery. 01714_ VE-W8U(R): "SUBHATE!" 01724_ Aluminum Leg destroyed. 01724_ Destroyed Aluminum Leg. 01732_ Aluminum Leg destroyed. 01732_ Destroyed Aluminum Leg. Map ----- +----------------------------------------------------+ | ###????# ##??### #?????????????????????? | | ?????? #####?????## #??#####??????????????? | | ???? ##?????????# #?## ##?????????????? | | ???## #???????????## ### #?????????????? | | ????###?????????????## ## #?????????????? | | ?????????????????????# ## #??????????????? | | ????????????????????## ## #???????????????? | | ????????????????????# ##??????????????? | | ???????????????????## #??????????????? | | ???????????????????# ##?????????????? | | ??????????????????# ### #?????????????? | | ??????????????????# #?# #?????????????? | | ??????????????????# ??# ##?????????????? | | ??????????????????## ?## #??????????????? | | ???????????????????### ?# #??????????????? | | ?????????????????## ?##?# ##??????????????? | | ?????????????????? ??## ###???????????????? | | ??????????????????? ### #?????????????????? | | ??????????????????? # # "= #?????????????????? | | ????????????????? "" "" #?????????????????? | | ???????????????? ] """ #?????????????????? | | ????????????????! ####"" ##?????????????????? | | ?????????????????#???## ##????????????????? | | ?????????????????# ??# "" # ##???????????????? | | ?????????????????# ###" #???????????????? | | ????????????????## " @ #????????????????? | | ??????????????" "" #????????????????? | | ??????????????# "" ##????????????????? | | ???????????????# "" R ?????????????????? | | ???????????????### "" #????????????????? | | ?????????????????####" #????????????????? | | ????????????????????# #????????????????? | | ????????????????????##### #????????????????? | | ????????????????????????#####????????????????? | | ?????????????????????????????????????????????? | | ?????????????????????????????????????????????? | | ?????????????????????????????????????????????? | | ?????????????????????????????????????????????? | | ?????????????????????????????????????????????? | | ?????????????????????????????????????????????? | | ?????????????????????????????????????????????? | | ?????????????????????????????????????????????? | | ?????????????????????????????????????????????? | | ?????????????????????????????????????????????? | | ?????????????????????????????????????????????? | | ?????????????????????????????????????????????? | | ?????????????????????????????????????????????? | | ?????????????????????????????????????????????? | | ?????????????????????????????????????????????? | | ?????????????????????????????????????????????? | +----------------------------------------------------+ Best States ------------- Heat Dissipation 25 Energy Generation 10 Energy Capacity 250 Matter Stores 300 Matter Capacity 300 Sight Range 16 Terrain Scan Density 10 Armor Coverage 150 Evasion (%) 55 Recoil Reduction 2 Item Schematics ----------------- None Robot Schematics ------------------ None Fabricated ------------ Nothing Alien Tech Used ----------------- None Achievements -------------- None Challenges ------------ None Game ------ Seed GreatLightningMagmablaster Manual? 0 Play Time 00:23:47 Cumulative 18.9 hours Start 2024.04.07 @ 13:25:10 End 2024.04.07 @ 13:50:27 Sessions 1 Manual Loads 0 Difficulty Rogue Special Mode None Game No. 19 Rogue 15 Adventurer 0 Explorer 4 Win Type - Total 0 Types 0/0/0/0/0/0/0/0/0 Lore% 19 Gallery% 24 Achievement% 23 Wizard Run 0 Options --------- Layout 1 ASCII 0 Keyboard 0 Movement Mouse Keybinds 0 Fullscreen 2 Font 32/SmallcapsGlow Map View 50x35 Zoom Use 0% Tactical HUD 1 Map Filters NONE Filters NONE Steam 1 RUN: d77896e0-cc4b-42da-8a80-f66778763941